bitfinex-derivatives/quotes_SOLF0:USTF0_20250730
["timestamp","ask_amount","ask_price","bid_price","bid_amount"]
[1753882327956,5.9088431,177.08,177.03,3.19]
[1753882328153,7.54228593,177.07,177.04,3.19]
[1753882328353,5.6483,177.05,177.04,3.19]
[1753882328555,4.33228593,177.05,177.01,3.04]
[1753882328750,5.9088431,177.08,177.0,5.6495]
[1753882328956,5.6486,177.04,177.02,3.04]
[1753882329254,3.01,177.04,177.02,3.04]
[1753882329456,3.01,177.05,176.98,3.04]
[1753882329662,4.33768581,177.04,176.98,3.04]
[1753882329853,3.01,177.05,176.99,5.6499]
[1753882330053,5.6487,177.03,177.01,3.04]
[1753882330254,3.01,177.05,177.02,3.04]
[1753882330559,5.6489,177.03,176.98,3.04]
[1753882330948,5.6489,177.03,177.01,3.04]
[1753882331154,5.6489,177.03,177.0,5.6494]
[1753882331155,5.6489,177.03,177.02,3.04]
[1753882331354,3.01,177.08,177.0,3.04]
[1753882331554,4.23704928,177.07,177.0,3.04]
[1753882331859,7.24704928,177.06,177.0,3.04]
[1753882332062,3.01,177.07,177.0,3.04]
[1753882332253,5.6488,177.03,177.0,3.04]
[1753882332557,3.01,177.03,176.98,3.04]
[1753882332762,5.6499,177.0,176.98,3.04]
[1753882332948,3.01,177.0,176.98,3.04]
[1753882333463,5.65,176.99,176.98,3.04]
[1753882333753,8.9188431,177.04,176.97,3.04]
[1753882333959,8.9188431,177.04,176.86,28.278]
[1753882333960,4.23977033,177.03,176.85,316.4]
[1753882334154,5.9088431,176.94,176.85,316.4]
[1753882334356,3.01,176.93,176.85,316.4]
[1753882334561,3.01,176.93,176.86,3.04]
[1753882334861,5.9088431,176.94,176.89,3.04]
[1753882335060,5.9088431,176.94,176.88,5.6534]
[1753882335061,3.01,176.94,176.91,3.04]
[1753882335253,3.01,176.94,176.85,316.4]
[1753882335254,3.01,176.96,176.87,3.04]
[1753882335450,3.01,176.96,176.89,3.04]
[1753882336055,3.01,176.95,176.89,3.04]
[1753882336259,5.9088431,176.94,176.89,3.04]
[1753882336557,5.9088431,176.94,176.85,316.4]
[1753882336558,5.6511,176.96,176.88,5.9088431]
[1753882336763,8.9188431,177.0,176.91,3.04]
[1753882336964,3.01,176.99,176.93,3.04]
[1753882337461,3.01,176.99,176.95,5.6511]
[1753882337760,8.9188431,177.02,176.98,3.04]
[1753882338059,5.9088431,177.04,176.98,3.04]
[1753882338265,5.6493,177.02,176.94,5.9088431]
[1753882338459,7.69781976,177.06,176.98,5.9088431]
[1753882338760,7.69781976,177.1,177.04,8.6881]
[1753882338956,4.08309339,177.09,177.05,3.04]
[1753882339153,4.08309339,177.08,177.07,3.04]
[1753882339359,8.77091315,177.12,177.07,3.04]
[1753882339559,11.78091315,177.12,177.08,3.04]
[1753882339751,9.72929339,177.11,177.07,3.04]
[1753882339957,4.08309339,177.1,177.06,5.6477]
[1753882340153,4.08309339,177.1,177.09,3.04]
[1753882340358,5.9088431,177.11,177.01,5.9088431]
[1753882340556,5.9088431,177.02,176.87,9.46689869]
[1753882340756,3.01,176.97,176.89,5.9088431]
[1753882341156,3.01,176.97,176.91,5.6525]
[1753882341362,3.01,176.97,176.93,3.04]
[1753882341557,3.01,176.97,176.89,5.9088431]
[1753882341558,3.01,176.97,176.94,3.04]
[1753882341966,5.6511,176.96,176.94,3.04]
[1753882342561,5.6511,176.96,176.89,5.9088431]
[1753882342562,3.01,176.96,176.89,5.9088431]
[1753882342871,3.01,176.94,176.88,9.46689869]
[1753882343167,3.01,176.94,176.86,428.08]
[1753882343168,3.01,176.94,176.87,9.46689869]
[1753882343360,3.01,176.94,176.88,9.46689869]
[1753882343763,3.01,176.92,176.86,111.6]
[1753882344360,3.01,176.92,176.8,8.97613515]
[1753882344361,3.01,176.9,176.82,3.04]
[1753882344565,11.98613515,176.93,176.82,3.04]
[1753882344956,11.98613515,176.96,176.84,3.04]
[1753882345266,8.97613515,176.96,176.84,3.04]
[1753882345463,5.6524,176.92,176.88,3.04]
[1753882345761,3.01,176.91,176.88,3.04]
[1753882345961,669.5,177.06,176.89,3.04]
[1753882345962,3.01,176.99,176.89,3.04]
[1753882346263,3.01,177.01,176.93,3.04]
[1753882346462,5.6499,176.99,176.94,5.6513]
[1753882346666,5.6499,176.99,176.96,3.04]
[1753882346965,5.6502,176.98,176.97,3.04]
[1753882347266,3.01,177.01,176.82,0.9839542]
[1753882347267,3.01,177.0,176.9,3.04]
[1753882347665,5.6519,176.93,176.91,3.04]
[1753882347871,8.97613515,176.95,176.86,3.04]
[1753882348166,3.01,176.95,176.86,3.04]
[1753882348963,3.01,176.95,176.83,118.13613515]
[1753882349162,8.97613515,176.96,176.84,3.04]
[1753882349365,5.6515,176.95,176.9,5.6527]
[1753882349566,3.01,176.98,176.91,3.04]
[1753882349867,5.6516,176.94,176.91,3.04]
[1753882350070,5.6516,176.94,176.92,3.04]
[1753882350267,8.97613515,177.0,176.92,3.04]
[1753882350465,5.6503,176.98,176.92,8.97613515]
[1753882350768,3.01,177.01,176.93,3.04]
[1753882350971,325.47613515,177.06,176.97,3.04]
[1753882350972,3.01,177.04,176.97,3.04]
[1753882351360,5.6501,176.99,176.94,8.6913]
[1753882351560,3.01,177.02,176.94,8.6913]
[1753882351561,3.01,177.02,176.95,3.04]
[1753882351963,3.01,177.02,176.96,3.04]
[1753882352567,3.01,177.0,176.96,3.04]
[1753882352763,8.97613515,177.03,176.96,3.04]
[1753882352962,3.01,177.02,176.93,3.04]
[1753882353165,5.6493,177.01,176.94,3.04]
[1753882353465,3.01,177.05,176.97,3.04]
[1753882353666,5.6489,177.03,176.97,3.04]
[1753882353862,5.6489,177.03,176.99,5.6496]
[1753882354069,3.01,177.05,176.99,5.6496]
[1753882354377,3.01,177.04,176.96,8.97613515]
[1753882354563,3.01,177.04,176.98,3.04]
[1753882354768,5.6491,177.02,176.97,3.04]
[1753882355072,3.01,177.04,176.99,3.04]
[1753882355269,3.01,177.04,176.97,3.04]
[1753882355667,3.01,177.01,176.94,3.04]
[1753882355867,8.97613515,176.99,176.89,109.02]
[1753882356066,3.01,176.98,176.9,3.04]
[1753882356668,3.01,176.98,176.89,109.02]
[1753882356876,3.01,176.98,176.92,3.04]
[1753882357072,8.97613515,177.02,176.92,3.04]
[1753882357073,3.01,177.01,176.92,3.04]
[1753882357473,5.651,176.96,176.92,3.04]
[1753882357768,3.01,177.01,176.93,3.04]
[1753882357971,5.6525,176.91,176.9,3.04]
[1753882358164,3.01,176.94,176.89,5.653]
[1753882358363,3.01,176.94,176.9,3.24]
[1753882358568,5.6525,176.91,176.9,3.24]
[1753882358968,3.2,176.93,176.87,3.24]
[1753882359370,12.17613515,176.93,176.84,112.28]
[1753882359568,8.97613515,176.9,176.78,9.46689869]
[1753882359770,3.2,176.89,176.79,3.24]
[1753882360163,5.6553,176.83,176.79,3.24]
[1753882360369,5.6553,176.83,176.78,3.24]
[1753882360569,8.97613515,176.9,176.79,5.6563]
[1753882360768,3.2,176.8,176.75,3.24]
[1753882360973,16.96,176.91,176.72,3.24]
[1753882360974,3.2,176.83,176.72,3.24]
[1753882361366,3.2,176.81,176.73,3.24]
[1753882361573,12.17613515,176.84,176.73,3.24]
[1753882361969,8.97613515,176.84,176.73,3.24]
[1753882362272,3.2,176.8,176.73,3.24]
[1753882362465,3.2,176.84,176.73,8.97613515]
[1753882362666,3.2,176.91,176.8,3.24]
[1753882362870,3.2,176.87,176.8,3.24]
[1753882363176,3.2,176.85,176.72,109.36]
[1753882363373,3.2,176.88,176.82,3.24]
[1753882363573,5.655,176.84,176.82,3.24]
[1753882363775,3.2,176.88,176.77,3.24]
[1753882364475,3.2,176.85,176.77,3.24]
[1753882364667,109.36,176.96,176.67,316.58]
[1753882364668,3.2,176.82,176.73,8.8982]
[1753882364869,3.2,176.82,176.73,3.24]
[1753882365274,3.2,176.79,176.73,3.24]
[1753882365575,8.97613515,176.78,176.68,3.24]
[1753882365881,3.2,176.77,176.71,3.24]
[1753882366872,12.17613515,176.81,176.7,3.24]
[1753882367176,3.2,176.81,176.7,3.24]
[1753882367368,5.6561,176.8,176.7,3.24]
[1753882367579,3.2,176.81,176.7,3.24]
[1753882367875,8.8559,176.81,176.73,3.24]
[1753882368085,3.2,176.81,176.73,3.24]
[1753882368973,3.2,176.84,176.8,5.6558]
[1753882369192,3.2,176.84,176.81,3.24]
[1753882369482,3.2,176.87,176.76,3.24]
[1753882369681,3.2,176.87,176.78,5.6564]
[1753882369885,3.2,176.87,176.76,3.24]
[1753882370184,3.2,176.84,176.74,3.24]
[1753882370684,5.6554,176.82,176.78,5.6564]
[1753882370877,8.97613515,176.88,176.81,3.24]
[1753882371079,3.2,176.87,176.81,3.24]
[1753882371283,3.2,176.87,176.83,3.24]
[1753882371480,3.2,176.87,176.84,3.24]
[1753882371881,3.2,176.9,176.79,3.24]
[1753882372283,8.97613515,176.91,176.78,8.97613515]
[1753882372480,8.97613515,176.91,176.8,3.24]
[1753882372481,3.2,176.84,176.8,3.24]
[1753882372785,5.6553,176.83,176.8,3.24]
[1753882372978,3.2,176.84,176.8,3.24]
[1753882373173,3.2,176.84,176.79,5.6563]
[1753882373374,3.2,176.9,176.79,3.24]
[1753882373976,5.6542,176.86,176.78,8.97613515]
[1753882374289,3.2,176.93,176.84,8.97613515]
[1753882374891,5.6524,176.92,176.88,5.6533]
[1753882375184,3.2,176.92,176.89,3.24]
[1753882375484,3.2,176.96,176.86,5.654]
[1753882375686,3.2,176.96,176.85,3.24]
[1753882376084,3.2,176.93,176.89,3.24]
[1753882376286,3.2,176.93,176.9,3.24]
[1753882376489,5.653,176.9,176.84,8.97613515]
[1753882376686,5.653,176.9,176.86,3.24]
[1753882376881,3.2,176.96,176.87,3.24]
[1753882378183,5.6528,176.91,176.84,8.97613515]
[1753882378488,5.6528,176.91,176.85,3.24]
[1753882378680,3.2,176.94,176.88,3.24]
[1753882379484,3.2,176.94,176.85,8.8941]
[1753882379687,3.2,176.94,176.85,3.24]
[1753882379879,3.2,176.93,176.85,3.24]
[1753882380280,3.2,177.01,176.9,8.97613515]
[1753882380491,3.2,177.01,176.94,3.24]
[1753882380686,5.6512,176.95,176.94,3.24]
[1753882380886,3.2,177.0,176.94,3.24]
[1753882381283,3.2,177.04,176.96,5.6507]
[1753882381488,3.2,177.04,176.95,3.24]
[1753882381683,3.2,177.04,176.88,8.97613515]
[1753882381684,3.2,177.04,176.98,3.24]
[1753882381880,3.2,177.04,176.99,3.24]
[1753882382097,3.2,177.04,176.98,3.24]
[1753882382283,3.2,177.04,176.99,3.24]
[1753882382484,3.2,177.03,176.96,3.24]
[1753882382692,109.14,177.1,176.93,3.24]
[1753882382693,3.2,177.0,176.93,3.24]
[1753882382889,8.97613515,177.04,176.93,3.24]
[1753882383090,109.14,177.1,176.95,3.24]
[1753882383091,3.2,177.03,176.95,3.24]
[1753882383492,3.2,177.0,176.95,8.8912]
[1753882383697,3.2,176.99,176.96,3.24]
[1753882383896,5.6506,176.97,176.96,3.24]
[1753882384196,3.2,177.03,176.96,3.24]
[1753882384999,3.2,177.03,176.98,5.6502]
[1753882385000,5.6493,177.02,176.98,5.6502]
[1753882385195,3.2,177.03,176.99,3.24]
[1753882385399,3.2,177.06,176.95,3.24]
[1753882385597,3.2,177.06,177.03,3.24]
[1753882385796,3.2,177.05,177.03,3.24]
[1753882385998,8.97613515,177.1,176.97,8.97613515]
[1753882386200,3.2,177.09,177.04,3.24]
[1753882386397,3.2,177.09,176.97,8.97613515]
[1753882386398,3.2,177.1,176.98,3.24]
[1753882386694,5.6486,177.04,176.97,8.97613515]
[1753882386899,5.6486,177.04,177.02,3.24]
[1753882387098,3.2,177.06,177.03,3.24]
[1753882387302,3.2,177.08,177.05,3.24]
[1753882387912,5.6477,177.06,177.05,3.24]
[1753882388117,8.97613515,177.11,177.05,3.24]
[1753882388404,5.6476,177.07,177.05,3.24]
[1753882388601,8.97613515,177.11,177.05,3.24]
[1753882388804,3.18,177.1,177.02,2.99]
[1753882389002,3.18,177.05,176.97,2.99]
[1753882389599,3.18,177.03,176.93,108.98]
[1753882389804,3.18,177.03,176.95,2.99]
[1753882390107,8.97613515,177.08,176.98,2.99]
[1753882390309,3.18,177.04,176.92,2.99]
[1753882390508,5.6494,177.01,176.98,2.99]
[1753882390701,5.6494,177.01,176.99,2.99]
[1753882390907,3.18,177.03,176.95,2.99]
[1753882391608,8.97613515,177.06,176.95,2.99]
[1753882391609,3.18,177.05,176.95,2.99]
[1753882391804,3.18,177.05,176.95,11.96613515]
[1753882392006,5.6475,177.07,177.04,5.6481]
[1753882392206,11.2904,177.14,177.01,8.97613515]
[1753882392207,3.18,177.13,177.02,2.99]
[1753882393709,3.18,177.13,177.04,8.97613515]
[1753882394010,3.18,177.13,177.05,2.99]
[1753882394309,8.97613515,177.17,177.08,2.99]
[1753882394310,3.18,177.16,177.08,2.99]
[1753882394511,3.18,177.13,177.05,2.99]
[1753882394702,8.97613515,177.11,177.03,2.99]
[1753882394907,8.97613515,177.08,177.0,2.99]
[1753882395116,3.18,177.07,177.0,2.99]
[1753882395412,3.18,177.07,176.95,108.84]
[1753882395608,3.18,177.03,176.96,2.99]
[1753882395810,3.18,177.04,176.96,11.96613515]
[1753882396005,3.18,177.04,176.97,2.99]
[1753882396412,3.18,177.04,176.98,5.6502]
[1753882396714,3.18,177.04,176.97,2.99]
[1753882396907,8.97613515,177.03,176.91,316.62]
[1753882397102,3.18,177.02,176.94,2.99]
[1753882397404,3.18,176.98,176.91,316.62]
[1753882397611,3.18,177.02,176.92,2.99]
[1753882398011,3.18,177.05,176.94,2.99]
[1753882398612,3.18,177.02,176.92,2.99]
[1753882399006,3.18,176.99,176.92,2.99]
[1753882399209,3.18,176.99,176.91,316.62]
[1753882399609,3.18,176.96,176.87,2.99]
[1753882399919,5.6522,176.92,176.89,5.6531]
[1753882400113,3.18,176.94,176.9,2.99]
[1753882400312,3.18,176.96,176.9,2.99]
[1753882400513,28.2553,177.07,176.9,2.99]
[1753882400514,3.18,177.01,176.9,2.99]
[1753882400816,3.18,177.01,176.91,2.99]
[1753882402115,316.46,177.11,176.84,125.87]
[1753882402116,3.18,177.04,176.94,2.99]
[1753882402311,3.18,177.04,176.95,2.99]
[1753882402712,3.18,177.03,176.95,2.99]
[1753882403112,5.6491,177.02,176.98,5.65]
[1753882403306,8.97613515,177.05,176.98,8.64]
[1753882403307,3.18,177.01,176.98,8.64]
[1753882403709,3.18,177.01,176.99,8.6399]
[1753882403916,3.18,177.04,176.99,5.6499]
[1753882404219,5.6487,177.03,177.01,2.99]
[1753882404420,3.18,177.07,176.97,2.99]
[1753882404614,8.97613515,177.11,176.94,108.86]
[1753882404615,8.97613515,177.11,177.0,2.99]
[1753882404921,8.8274,177.08,177.05,2.99]
[1753882405122,3.18,177.1,177.0,2.99]
[1753882405416,8.97613515,177.11,176.99,2.99]
[1753882405615,3.18,177.1,177.02,2.99]
[1753882406022,3.18,177.1,177.07,2.99]
[1753882406414,3.18,177.09,177.02,2.99]
[1753882407116,3.18,177.06,177.03,8.6384]
[1753882407513,5.648,177.06,177.03,2.99]
[1753882407718,3.18,177.05,177.03,2.99]
[1753882407916,8.8281,177.05,176.99,2.99]
[1753882408116,3.18,177.05,176.99,2.99]
[1753882408514,8.8282,177.05,177.01,5.649]
[1753882408716,3.18,177.05,176.99,2.99]
[1753882409619,3.18,177.05,176.98,108.82]
[1753882409819,5.6494,177.01,176.98,114.4702]
[1753882410116,3.18,177.01,176.98,111.81]
[1753882410317,3.18,177.05,176.99,2.99]
[1753882410514,316.48,177.21,176.99,2.99]
[1753882410515,3.18,177.08,176.99,2.99]
[1753882410915,5.6474,177.07,176.99,2.99]
[1753882411320,3.18,177.08,176.99,2.99]
[1753882411623,8.97613515,177.14,177.01,2.99]
[1753882411818,3.18,177.13,177.01,2.99]
[1753882412023,5.647,177.09,177.06,2.99]
[1753882412325,3.18,177.08,177.06,2.99]
[1753882412616,3.18,177.08,177.01,2.99]
[1753882413726,3.18,177.07,176.98,2.99]
[1753882414922,5.6493,177.02,176.98,2.99]
[1753882415124,8.97613515,177.08,176.99,2.99]
[1753882415317,3.18,177.07,176.99,2.99]
[1753882415520,8.8285,177.04,177.01,8.6393]
[1753882416022,8.829,177.02,176.99,8.6399]
[1753882416421,8.829,177.02,176.99,5.6499]
[1753882416626,3.18,177.01,176.99,8.6399]
[1753882417129,3.18,177.07,176.97,2.99]
[1753882417628,8.97613515,177.08,177.03,5.6485]
[1753882417830,3.18,177.06,177.03,8.6385]
[1753882418128,5.648,177.05,177.01,5.6491]
[1753882418328,3.18,177.07,177.0,2.99]
[1753882418725,8.7078,177.06,177.03,8.7484]
[1753882418924,28.2499,177.15,176.99,4.69077611]
[1753882418925,3.06,177.11,177.05,3.1]
[1753882419124,5.647,177.09,177.05,8.7479]
[1753882419326,8.97613515,177.12,177.04,4.69077611]
[1753882419523,8.97613515,177.12,177.03,111.46]
[1753882419524,3.06,177.11,177.03,111.46]
[1753882419722,3.06,177.11,177.04,3.1]
[1753882420026,3.06,177.14,177.07,3.1]
[1753882420228,3.06,177.14,177.11,5.6459]
[1753882420429,3.06,177.14,177.08,3.1]
[1753882420829,3.06,177.13,177.11,3.1]
[1753882421027,8.97613515,177.18,177.08,3.1]
[1753882421228,3.06,177.17,177.08,3.1]
[1753882421424,3.06,177.17,177.09,5.6465]
[1753882421922,8.706,177.12,177.09,3.1]
[1753882422429,3.06,177.12,177.09,8.7467]
[1753882422625,3.06,177.12,177.1,3.1]
[1753882423232,3.06,177.15,177.11,3.1]
[1753882423427,3.06,177.17,177.11,3.1]
[1753882423926,3.06,177.28,177.13,3.1]
[1753882424134,3.06,177.26,177.16,4.69077611]
[1753882424325,5.6427,177.22,177.17,4.69077611]
[1753882424628,3.06,177.22,177.17,4.69077611]
[1753882424828,3.06,177.22,177.2,3.1]
[1753882425235,3.06,177.27,177.17,3.1]
[1753882425429,3.06,177.21,177.17,3.1]
[1753882425626,3.06,177.27,177.17,3.1]
[1753882425833,5.6422,177.24,177.19,5.6433]
[1753882426031,3.06,177.24,177.21,3.1]
[1753882426231,3.06,177.27,177.23,3.1]
[1753882426534,3.06,177.25,177.23,3.1]
[1753882426732,8.97613515,177.31,177.24,3.1]
[1753882426931,3.06,177.3,177.21,3.1]
[1753882427729,3.06,177.3,177.22,3.1]
[1753882427929,3.06,177.29,177.19,3.1]
[1753882428128,8.97613515,177.3,177.18,10.33437611]
[1753882428332,3.06,177.23,177.21,3.1]
[1753882428632,5.6429,177.22,177.17,8.7442]
[1753882428828,3.06,177.24,177.18,3.1]
[1753882429230,5.6434,177.2,177.19,3.1]
[1753882429632,3.06,177.26,177.15,3.1]
[1753882430432,3.06,177.22,177.16,3.1]
[1753882430937,3.06,177.22,177.15,3.1]
[1753882431238,3.06,177.26,177.15,3.1]
[1753882431437,3.06,177.26,177.19,12.07613515]
[1753882431629,3.06,177.26,177.2,3.1]
[1753882431837,3.06,177.26,177.2,5.643]
[1753882432145,3.06,177.26,177.21,3.1]
[1753882432436,5.6421,177.24,177.21,3.1]
[1753882432632,3.06,177.29,177.21,3.1]
[1753882432832,5.6411,177.27,177.21,3.1]
[1753882433030,3.06,177.3,177.23,3.1]
[1753882433434,11.2753,177.38,177.23,3.1]
[1753882433644,3.06,177.36,177.26,3.1]
[1753882434032,3.06,177.33,177.27,3.1]
[1753882434536,3.06,177.36,177.29,3.1]
[1753882435333,3.06,177.36,177.25,8.97613515]
[1753882435544,8.97613515,177.37,177.25,14.61753515]
[1753882435545,5.6402,177.3,177.25,14.61753515]
[1753882435842,8.7002,177.3,177.27,3.1]
[1753882436037,8.7002,177.3,177.28,3.1]
[1753882436237,5.6404,177.29,177.24,107.98]
[1753882436436,3.06,177.29,177.26,5.6413]
[1753882436740,3.06,177.36,177.26,3.1]
[1753882437141,3.06,177.36,177.28,3.1]
[1753882437333,5.6395,177.33,177.28,3.1]
[1753882437642,3.06,177.35,177.26,3.1]
[1753882438140,3.06,177.35,177.29,3.1]
[1753882438536,3.06,177.36,177.26,8.7412]
[1753882438834,3.06,177.36,177.26,3.1]
[1753882439039,3.06,177.33,177.24,107.98]
[1753882439542,3.06,177.33,177.25,3.1]
[1753882439746,3.06,177.33,177.26,3.1]
[1753882440136,8.97613515,177.34,177.22,8.97613515]
[1753882440335,8.97613515,177.31,177.23,3.1]
[1753882440640,11.2743,177.4,177.18,325.15613515]
[1753882440641,8.7032,177.21,177.19,3.1]
[1753882440836,8.7032,177.21,177.18,316.18]
[1753882440837,3.06,177.2,177.16,3.1]
[1753882441039,3.06,177.27,177.17,8.97613515]
[1753882441336,3.06,177.3,177.21,3.1]
[1753882441638,5.6422,177.24,177.22,3.1]
[1753882441834,3.06,177.3,177.19,8.97613515]
[1753882442041,3.06,177.3,177.2,3.1]
[1753882442236,3.06,177.3,177.22,8.97613515]
[1753882442436,3.06,177.3,177.23,3.1]
[1753882442636,5.6418,177.25,177.16,3.1]
[1753882442837,5.6418,177.25,177.2,3.1]
[1753882443035,5.6418,177.25,177.19,8.97613515]
[1753882443036,3.06,177.25,177.22,3.1]
[1753882443242,3.06,177.29,177.23,3.1]
[1753882443645,3.06,177.29,177.2,3.1]
[1753882443940,11.276,177.37,177.15,112.61077611]
[1753882443941,3.06,177.31,177.23,3.1]
[1753882444336,8.7,177.31,177.27,5.641]
[1753882444533,3.06,177.31,177.24,3.1]
[1753882445332,3.06,177.31,177.25,5.6416]
[1753882445543,3.06,177.31,177.25,3.1]
[1753882446238,3.06,177.34,177.26,3.1]
[1753882446435,8.97613515,177.32,177.23,111.24]
[1753882446639,3.06,177.31,177.23,111.24]
[1753882446841,3.06,177.31,177.23,108.14]
[1753882447244,3.06,177.29,177.24,3.1]
[1753882447439,3.06,177.31,177.23,108.14]
[1753882447647,5.6412,177.27,177.23,113.7822]
[1753882447944,3.06,177.27,177.25,3.1]
[1753882448146,5.6419,177.25,177.23,108.14]
[1753882448342,3.05,177.25,177.23,108.14]
[1753882448548,3.05,177.31,177.22,3.1]
[1753882448736,8.97613515,177.32,177.18,8.97613515]
[1753882448737,5.6411,177.27,177.23,5.6421]
[1753882449045,3.05,177.31,177.24,3.25]
[1753882449242,5.6416,177.26,177.24,3.25]
[1753882449442,3.05,177.26,177.24,3.25]
[1753882449641,3.05,177.31,177.19,3.25]
[1753882449837,5.6409,177.28,177.19,3.25]
[1753882450036,8.97613515,177.32,177.19,3.25]
[1753882450037,3.05,177.29,177.19,3.25]
[1753882450443,3.05,177.32,177.22,3.25]
[1753882450746,3.05,177.32,177.24,5.88095541]
[1753882451044,3.05,177.3,177.28,3.25]
[1753882451543,3.05,177.31,177.25,3.25]
[1753882451742,3.05,177.29,177.21,3.25]
[1753882452141,3.05,177.29,177.22,3.25]
[1753882452642,5.6414,177.26,177.23,3.25]
[1753882452845,3.05,177.29,177.21,3.25]
[1753882453041,5.6415,177.26,177.21,3.25]
[1753882453237,5.88095541,177.3,177.2,5.88095541]
[1753882453444,3.05,177.29,177.21,3.25]
[1753882453647,5.6413,177.27,177.23,5.6422]
[1753882453837,3.05,177.26,177.2,5.88095541]
[1753882454037,3.05,177.25,177.22,3.25]
[1753882454245,3.05,177.25,177.18,5.6437]
[1753882455046,3.05,177.25,177.19,8.8936]
[1753882455349,3.05,177.25,177.19,3.25]
[1753882455648,5.6425,177.23,177.21,3.25]
[1753882456343,5.88095541,177.26,177.18,3.25]
[1753882456542,3.05,177.23,177.17,108.04]
[1753882456843,8.6932,177.21,177.18,3.25]
[1753882457042,8.6932,177.21,177.19,3.25]
[1753882457448,3.05,177.23,177.21,3.25]
[1753882457749,11.2772,177.35,177.19,5.88095541]
[1753882457945,3.05,177.29,177.23,3.25]
[1753882458138,5.88095541,177.29,177.23,3.25]
[1753882458342,3.05,177.26,177.19,8.8933]
[1753882458541,3.05,177.26,177.19,3.25]
[1753882458944,5.88095541,177.27,177.21,5.6428]
[1753882459150,8.6922,177.24,177.22,3.25]
[1753882459449,8.93095541,177.27,177.22,3.25]
[1753882459645,5.6419,177.25,177.18,3.25]
[1753882459840,3.05,177.26,177.18,3.25]
[1753882460047,3.05,177.26,177.19,5.88095541]
[1753882460247,8.6916,177.26,177.2,3.25]
[1753882460451,3.05,177.26,177.2,8.8931]
[1753882460644,8.6915,177.26,177.2,3.25]
[1753882461043,5.88095541,177.29,177.19,5.88095541]
[1753882461247,3.05,177.29,177.21,5.88095541]
[1753882461550,3.05,177.29,177.22,3.25]
[1753882462441,5.88095541,177.29,177.21,3.25]
[1753882462645,3.05,177.28,177.21,3.25]
[1753882462845,5.88095541,177.29,177.2,4.69077611]
[1753882463153,3.05,177.24,177.18,7.94077611]
[1753882463350,3.05,177.24,177.18,13.58467611]
[1753882463351,5.6429,177.22,177.18,13.58467611]